fUST/lending_fUST_20250522
["ID","MTS","AMOUNT","RATE_DAILY","PERIOD"]
[361858370,1747847432238,-500.0,0.00020998,2]
[361858371,1747847432249,-500.0,0.00020998,2]
[361858373,1747847432258,-500.0,0.00020998,2]
[361858375,1747847432268,-500.0,0.00020998,2]
[361858378,1747847432283,-466.29526335,0.00020998,2]
[361858380,1747847432294,-500.0,0.00020998,2]
[361858382,1747847432304,-500.0,0.00020998,2]
[361858384,1747847432313,-500.0,0.00020998,2]
[361858386,1747847432323,-500.0,0.00020998,2]
[361858388,1747847432335,-500.0,0.00020998,2]
[361858390,1747847432345,-500.0,0.00020998,2]
[361858392,1747847432355,-500.0,0.00020998,2]
[361858394,1747847432366,-500.0,0.00020998,2]
[361858396,1747847432377,-500.0,0.00020998,2]
[361858398,1747847432386,-500.0,0.00020998,2]
[361858400,1747847432396,-500.0,0.00020998,2]
[361858402,1747847432406,-500.0,0.00020998,2]
[361858404,1747847432415,-500.0,0.00020998,2]
[361858406,1747847432425,-500.0,0.00020998,2]
[361858408,1747847432435,-500.0,0.00020998,2]
[361858410,1747847432444,-500.0,0.00020998,2]
[361858412,1747847432455,-500.0,0.00020998,2]
[361858414,1747847432465,-500.0,0.00020998,2]
[361858416,1747847432475,-500.0,0.00020998,2]
[361858418,1747847432486,-500.0,0.00020998,2]
[361858420,1747847432495,-500.0,0.00020998,2]
[361858422,1747847432508,-500.0,0.00020998,2]
[361858424,1747847432518,-500.0,0.00020998,2]
[361858426,1747847432528,-500.0,0.00020998,2]
[361858428,1747847432538,-500.0,0.00020998,2]
[361858430,1747847432548,-500.0,0.00020998,2]
[361858432,1747847432558,-500.0,0.00020998,2]
[361858434,1747847432569,-500.0,0.00020998,2]
[361858436,1747847432578,-500.0,0.00020998,2]
[361858438,1747847432589,-500.0,0.00020998,2]
[361858440,1747847432599,-646.62952634,0.00020998,2]
[361858442,1747847432609,-3000.0,0.00021,2]
[361858444,1747847432619,-3000.0,0.0002101,2]
[361858446,1747847432629,-3000.0,0.0002102,2]
[361858448,1747847432639,-172.74960757,0.00021026,2]
[361858450,1747847432649,-3000.0,0.0002103,2]
[361858452,1747847432660,-3000.0,0.0002104,2]
[361858454,1747847432671,-3000.0,0.0002105,2]
[361858456,1747847432682,-3000.0,0.0002106,2]
[361858458,1747847432692,-3000.0,0.0002107,2]
[361858460,1747847432702,-390.27426346,0.00021072,4]
[361858462,1747847432711,-3000.0,0.0002108,2]
[361858464,1747847432722,-3000.0,0.0002109,2]
[361858466,1747847432732,-3556.401292,0.000211,2]
[361858468,1747847432743,-420.0,0.00021165,2]
[361858470,1747847432756,-390.27426346,0.00021314,5]
[361858471,1747847432766,-390.27426346,0.00021555,5]
[361858473,1747847432777,-19332.86511275,0.0002166,2]
[361858474,1747847432787,-500.0,0.00021772,2]
[361858475,1747847432798,-390.27426346,0.00021797,6]
[361858477,1747847432808,-500.0,0.00021914,2]
[361858478,1747847432818,-500.0,0.00021914,2]
[361858480,1747847432829,-631.29601084,0.00021914,2]
[361858481,1747847432840,-500.0,0.00021914,2]
[361858483,1747847432850,-500.0,0.00021914,2]
[361858484,1747847432860,-500.0,0.00021914,2]
[361858485,1747847432871,-500.0,0.00021914,2]
[361858486,1747847432880,-377.14412649,0.00021914,2]
[361858487,1747847432891,-430.0,0.00021917,2]
[361858488,1747847432904,-430.0,0.00021917,2]
[361858489,1747847432914,-430.0,0.00021917,2]
[361858490,1747847432925,-430.0,0.00021917,2]
[361858491,1747847432935,-430.0,0.00021917,2]
[361858492,1747847432944,-2072.55,0.00021917,2]
[361858493,1747847432954,-431.06965308,0.00021917,2]
[361858494,1747847432964,-432.78400265,0.00021917,2]
[361858495,1747847432975,-500.0,0.00021917,2]
[361858496,1747847432984,-434.32605152,0.00021917,2]
[361858497,1747847432994,-435.59603663,0.00021917,2]
[361858498,1747847433010,-434.3187291,0.00021917,2]
[361858499,1747847433022,-434.04083357,0.00021917,2]
[361858500,1747847433034,-549.64451483,0.00021917,2]
[361858501,1747847433045,-432.10572513,0.00021917,2]
[361858502,1747847433056,-434.33112965,0.00021917,2]
[361858503,1747847433068,-430.0,0.00021917,2]
[361858504,1747847433079,-434.2972813,0.00021917,2]
[361858505,1747847433091,-466.34884344,0.00021917,2]
[361858506,1747847433102,-230.47895064,0.00021917,2]
[361858507,1747847433113,-430.0,0.00021917,2]
[361858508,1747847433124,-371.71550547,0.00021917,2]
[361858509,1747847433136,-466.64,0.00021917,2]
[361858510,1747847433148,-292.21,0.00021917,2]
[361858511,1747847433160,-436.64667278,0.00021917,2]
[361858512,1747847433171,-423.33619993,0.00021917,2]
[361858513,1747847433182,-381.77764351,0.00021917,2]
[361858514,1747847433194,-309.87758829,0.00021917,2]
[361858515,1747847433206,-430.0,0.00021917,2]
[361858516,1747847433217,-538.48,0.00021917,2]
[361858517,1747847433229,-442.34,0.00021917,2]
[361858518,1747847433242,-434.5987658,0.00021917,2]
[361858519,1747847433260,-430.0,0.00021917,2]
[361858520,1747847433271,-430.0,0.00021917,2]
[361858521,1747847433285,-446.26725662,0.00021917,2]
[361858522,1747847433297,-430.0,0.00021917,2]
[361858523,1747847433309,-437.71180655,0.00021917,2]
[361858524,1747847433320,-430.0,0.00021917,2]
[361858525,1747847433333,-430.0,0.00021917,2]
[361858526,1747847433344,-430.0,0.00021917,2]
[361858527,1747847433356,-430.0,0.00021917,2]
[361858528,1747847433368,-430.0,0.00021917,2]
[361858529,1747847433381,-430.0,0.00021917,2]
[361858530,1747847433392,-430.0,0.00021917,2]
[361858531,1747847433403,-430.0,0.00021917,2]
[361858532,1747847433413,-500.0,0.00021917,2]
[361858533,1747847433424,-420.32943805,0.00021917,2]
[361858534,1747847433435,-519.44,0.00021917,2]
[361858535,1747847433447,-430.0,0.00021917,2]
[361858536,1747847433459,-430.0,0.00021917,2]
[361858537,1747847433470,-430.0,0.00021917,2]
[361858538,1747847433482,-430.0,0.00021917,2]
[361858539,1747847433493,-445.96,0.00021917,2]
[361858540,1747847433508,-991.27,0.00021917,2]
[361858541,1747847433519,-430.0,0.00021917,2]
[361858542,1747847433529,-446.93841951,0.00021917,2]
[361858543,1747847433540,-430.0,0.00021917,2]
[361858544,1747847433551,-430.0,0.00021917,2]
[361858545,1747847433562,-430.0,0.00021917,2]
[361858546,1747847433572,-430.0,0.00021917,2]
[361858547,1747847433583,-430.0,0.00021917,2]
[361858548,1747847433594,-412.1,0.00021917,2]
[361858549,1747847433604,-430.0,0.00021917,2]
[361858550,1747847433615,-430.0,0.00021917,2]
[361858551,1747847433625,-430.0,0.00021917,2]
[361858552,1747847433636,-430.0,0.00021917,2]
[361858553,1747847433647,-430.0,0.00021917,2]
[361858554,1747847433657,-430.0,0.00021917,2]
[361858555,1747847433669,-257.31,0.00021917,2]
[361858556,1747847433679,-22478.39,0.00021917,2]
[361858557,1747847433691,-430.0,0.00021917,2]
[361858558,1747847433702,-430.0,0.00021917,2]
[361858559,1747847433712,-476.46121238,0.00021917,2]
[361858560,1747847433723,-458.12,0.00021917,2]
[361858561,1747847433734,-430.0,0.00021917,2]
[361858562,1747847433746,-1702.7843936,0.00021948,2]
[361858563,1747847433760,-20031.70507626,0.00021948,3]
[361858564,1747847433770,-127050.88357101,0.00021948,12]
[361858565,1747847433786,-2608.34526944,0.00021948,12]
[361858590,1747847437841,-2590.0,0.00021948,12]
[361858591,1747847437856,-470.61133387,0.00021948,12]
[361858592,1747847438629,-10255.05291762,0.00021948,12]
[361858593,1747847438776,-92208.39463546,0.00021948,12]
[361858598,1747847440153,-270.71022538,0.00021817,2]
[361858630,1747847442956,10000.0,0.00019,30]
[361858641,1747847443152,-500.0,0.00020997,2]
[361858643,1747847443163,-614.66295263,0.00020997,2]
[361858645,1747847443173,-4483.11430716,0.00021755,2]
[361858647,1747847443185,-516.88569284,0.00021755,2]
[361858648,1747847443202,-59.11079782,0.00021817,2]
[361858649,1747847443216,-500.0,0.00021913,2]
[361858650,1747847443230,-500.0,0.00021913,2]
[361858651,1747847443246,-291.90720759,0.00021913,2]
[361858652,1747847443261,-514.00088855,0.00021913,2]
[361858653,1747847443273,-500.0,0.00021913,2]
[361858654,1747847443284,-500.0,0.00021913,2]
[361858655,1747847443299,-430.0,0.00021917,2]
[361858656,1747847443314,-430.0,0.00021917,2]
[361858657,1747847443335,-12208.5954132,0.00021948,12]
[361858673,1747847445816,-500.0,0.00020997,2]
[361858674,1747847445828,-433.61318001,0.00021917,2]
[361858675,1747847445841,-657.53517275,0.00021948,12]
[361858676,1747847445870,-569.73240964,0.00021948,12]
[361858677,1747847446140,-945.2989708,0.00021948,12]
[361858678,1747847446322,-0.15354317,0.00021948,12]
[361858679,1747847468163,10000.0,0.00019,30]
[361858680,1747847480530,10000.0,0.00019,30]
[361858681,1747847508323,10000.0,0.00019,30]
[361858682,1747847517372,10000.0,0.00019,30]
[361858683,1747847525900,10000.0,0.00019,30]
[361858684,1747847538549,10000.0,0.00019,30]
[361858685,1747847550100,9560.88261442,0.00019,30]
[361858686,1747847576647,10000.0,0.00015,2]
[361858687,1747847589707,10000.0,0.00015,2]
[361858688,1747847631266,9255.96,0.00015,2]
[361858699,1747848318887,-160.0,0.0001573,2]
[361858702,1747848411069,196.886482,0.00013699,2]
[361858704,1747848433086,-912.7281462,0.00015573,2]
[361858706,1747848449084,-4087.2718538,0.00015573,2]
[361858707,1747848449107,-89.7281462,0.0001573,2]
[361858717,1747848515713,-5000.0,0.00015573,2]
[361858723,1747848530753,369.60178198,0.00015,2]
[361858724,1747848548069,-223.08459418,0.00015573,2]
[361858726,1747848559101,-1847.53184645,0.00015573,2]
[361858791,1747848632943,-153.22450432,0.00015554,2]
[361858792,1747848632954,-2929.38355937,0.00015573,2]
[361858793,1747848632965,-24.6026881,0.0001573,2]
[361858794,1747848632976,-1200.0,0.00017999,2]
[361858795,1747848632986,-5050.57519965,0.00018,2]
[361858796,1747848632997,-300.0,0.00018899,2]
[361858797,1747848633008,-300.0,0.00018899,2]
[361858798,1747848633156,-300.0,0.00018899,2]
[361858799,1747848633168,-150.0,0.000189,2]
[361858800,1747848633185,-1476.70210697,0.000189,2]
[361858801,1747848633196,-439.11738558,0.00019,30]
[361858802,1747848633207,-1476.70210682,0.00019141,2]
[361858803,1747848633218,-1476.70210682,0.00019383,2]
[361858804,1747848633230,-173.993769,0.00019559,2]
[361858805,1747848633241,-1476.70210682,0.00019624,2]
[361858806,1747848633252,-3020.4770657,0.00019667,2]
[361858807,1747848633263,-421.875476,0.00019813,2]
[361858808,1747848633274,-1476.70210682,0.00019866,2]
[361858809,1747848633285,-361.39874119,0.00020005,2]
[361858810,1747848633297,-1476.70210682,0.00020107,2]
[361858811,1747848633307,-196.886482,0.00020187,2]
[361858812,1747848633318,-1476.70210682,0.00020348,3]
[361858813,1747848633329,-1476.70210682,0.0002059,3]
[361858814,1747848633341,-420.0,0.00020602,2]
[361858815,1747848633352,-300.0,0.0002071,2]
[361858816,1747848633363,-200.0,0.00020712,3]
[361858817,1747848633374,-160.0,0.00020812,2]
[361858818,1747848633385,-1476.70210682,0.00020831,4]
[361858819,1747848633395,-927.86335931,0.00020892,2]
[361858820,1747848633406,-12643.00196899,0.00020946,2]
[361858821,1747848633416,-212.41679935,0.00020949,2]
[361858822,1747848633571,-894.64583333,0.00020949,2]
[361858823,1747848633584,-422.71322487,0.00020949,2]
[361858824,1747848633596,-160.0,0.00020949,2]
[361858825,1747848633607,-500.0,0.0002095,2]
[361858826,1747848633618,-554.33504531,0.0002095,2]
[361858827,1747848633630,-500.0,0.0002095,2]
[361858828,1747848633642,-409.80062198,0.0002095,2]
[361858829,1747848633652,-500.0,0.00020951,2]
[361858830,1747848633663,-500.0,0.00020951,2]
[361858831,1747848633678,-605.87942071,0.00020951,2]
[361858832,1747848633689,-500.0,0.00020951,2]
[361858833,1747848633699,-151.0,0.0002099,2]
[361858834,1747848633711,-151.0,0.0002099,2]
[361858835,1747848633724,-151.0,0.0002099,2]
[361858836,1747848633734,-151.0,0.0002099,2]
[361858837,1747848633745,-151.0,0.0002099,2]
[361858838,1747848633756,-151.0,0.0002099,2]
[361858839,1747848633769,-151.0,0.0002099,2]
[361858840,1747848633780,-198.25020853,0.0002099,4]
[361858841,1747848633792,-233.31487126,0.0002099,4]
[361858842,1747848633803,-151.0,0.00020991,2]
[361858843,1747848633814,-151.0,0.00020991,2]
[361858844,1747848633825,-151.0,0.00020991,2]
[361858845,1747848633835,-127.12955277,0.00020991,2]
[361858846,1747848633850,-23.87044723,0.00020991,2]
[361858847,1747848633860,-151.0,0.00020992,2]
[361858848,1747848633871,-151.0,0.00020992,2]
[361858849,1747848633881,-151.0,0.00020992,2]
[361858850,1747848633892,-151.0,0.00020992,2]
[361858851,1747848633903,-151.0,0.00020992,2]
[361858852,1747848633914,-151.0,0.00020992,2]
[361858853,1747848633929,-151.0,0.00020992,2]
[361858854,1747848633940,-151.26819811,0.00020992,2]
[361858855,1747848633951,-151.0,0.00020992,2]
[361858856,1747848633962,-151.0,0.00020992,2]
[361858857,1747848633972,-38.56012347,0.00020992,2]
[361858858,1747848633994,-112.43987653,0.00020992,2]
[361858859,1747848634005,-152.64630073,0.00020992,2]
[361858860,1747848634016,-151.0,0.00020992,2]
[361858861,1747848634026,-151.0,0.00020995,2]
[361858862,1747848634036,-151.0,0.00020995,2]
[361858863,1747848634046,-151.0,0.00020995,2]
[361858864,1747848634057,-151.0,0.00020995,2]
[361858865,1747848634067,-151.0,0.00020995,2]
[361858866,1747848634078,-151.0,0.00020995,2]
[361858867,1747848634088,-151.60411204,0.00020995,2]
[361858868,1747848634098,-151.0,0.00020995,2]
[361858869,1747848634109,-151.0,0.00020995,2]
[361858870,1747848634119,-151.5283339,0.00020995,2]
[361858871,1747848634129,-151.0,0.00020995,2]
[361858872,1747848634138,-151.0,0.00021017,2]
[361858873,1747848634149,-151.0,0.00021017,2]
[361858874,1747848634158,-151.0,0.00021017,2]
[361858875,1747848634168,-151.0,0.00021017,2]
[361858876,1747848634182,-151.0,0.00021017,2]
[361858877,1747848634192,-151.0,0.00021018,2]
[361858878,1747848634202,-198.0,0.00021018,2]
[361858879,1747848634212,-151.0,0.00021018,2]
[361858880,1747848634223,-151.0,0.00021019,2]
[361858881,1747848634233,-151.0,0.00021019,2]
[361858883,1747848634243,-151.83664016,0.00021019,2]
[361858884,1747848634253,-151.0,0.00021019,2]
[361858885,1747848634265,-151.0,0.00021019,2]
[361858886,1747848634275,-151.0,0.00021019,2]
[361858887,1747848634285,-151.0,0.00021019,2]
[361858888,1747848634296,-151.0,0.00021019,2]
[361858889,1747848634306,-151.0,0.00021019,2]
[361858890,1747848634316,-151.0,0.00021019,2]
[361858891,1747848634327,-277.35776524,0.00021022,2]
[361858892,1747848634338,-151.69008569,0.00021022,2]
[361858893,1747848634348,-153.39828348,0.00021022,2]
[361858894,1747848634359,-151.0,0.00021022,2]
[361858895,1747848634369,-151.0,0.00021022,2]
[361858896,1747848634379,-153.60640313,0.00021022,2]
[361858897,1747848634390,-151.72277951,0.00021022,2]
[361858898,1747848634400,-151.22672425,0.00021022,2]
[361858899,1747848634411,-151.0,0.00021022,2]
[361858900,1747848634422,-198.0,0.00021045,2]
[361858901,1747848634439,-198.0,0.00021045,2]
[361858902,1747848634450,-198.0,0.00021045,2]
[361858903,1747848634461,-198.0,0.00021045,2]
[361858904,1747848634473,-198.0,0.00021045,2]
[361858905,1747848634483,-151.0,0.00021046,2]
[361858906,1747848634494,-198.0,0.00021046,2]
[361858907,1747848634505,-151.0,0.00021047,2]
[361858908,1747848634516,-151.0,0.00021047,2]
[361858909,1747848634528,-151.0,0.00021047,2]
[361858910,1747848634539,-151.0,0.00021047,2]
[361858911,1747848634550,-151.0,0.00021047,2]
[361858912,1747848634561,-198.0,0.00021047,2]
[361858913,1747848634571,-151.0,0.0002105,2]
[361858914,1747848634581,-630.00979974,0.00021072,4]
[361858915,1747848634596,-846.69230708,0.00021072,4]
[361858916,1747848634606,-151.0,0.00021073,2]
[361858917,1747848634616,-151.0,0.00021074,2]
[361858918,1747848634626,-151.0,0.00021074,2]
[361858919,1747848634636,-151.0,0.00021074,2]
[361858920,1747848634646,-151.0,0.00021074,2]
[361858921,1747848634656,-151.0,0.00021074,2]
[361858922,1747848634666,-151.0,0.00021077,2]
[361858923,1747848634680,-151.0,0.00021101,2]
[361858924,1747848634690,-151.0,0.00021102,2]
[361858925,1747848634700,-151.0,0.00021102,2]
[361858926,1747848634710,-151.0,0.00021102,2]
[361858927,1747848634724,-151.0,0.00021102,2]
[361858928,1747848634735,-245.0,0.00021102,2]
[361858929,1747848634745,-151.0,0.00021105,2]
[361858930,1747848634754,-245.0,0.00021128,2]
[361858931,1747848634768,-245.0,0.00021129,2]
[361858932,1747848634777,-245.0,0.00021129,2]
[361858933,1747848634787,-245.0,0.00021129,2]
[361858934,1747848634798,-245.0,0.00021129,2]
[361858935,1747848634808,-245.0,0.00021132,2]
[361858936,1747848634817,-927.86335928,0.00021192,2]
[361858937,1747848634827,-507.87602639,0.00021225,2]
[361858938,1747848634837,-1476.70210682,0.00021314,5]
[361858939,1747848634847,-927.86335928,0.00021492,2]
[361858940,1747848634856,-1476.70210682,0.00021555,5]
[361858941,1747848634866,-28411.49784577,0.0002166,7]
[361858942,1747848634876,-649.57186558,0.0002173,2]
[361858943,1747848634886,-500.0,0.00021772,2]
[361858944,1747848634895,-927.86335928,0.00021791,2]
[361858945,1747848634905,-1476.70210682,0.00021797,6]
[361858946,1747848634915,-586.91515268,0.00021913,2]
[361858947,1747848634929,-430.0,0.00021917,2]
[361858948,1747848634939,-501.66825173,0.00021917,2]
[361858949,1747848634948,-430.0,0.00021917,2]
[361858950,1747848634959,-430.0,0.00021917,2]
[361858951,1747848634969,-433.96152516,0.00021917,2]
[361858952,1747848634979,-502.49263,0.00021917,2]
[361858953,1747848634988,-400.34518435,0.00021917,2]
[361858954,1747848634998,-402.64732013,0.00021917,2]
[361858955,1747848635007,-430.0,0.00021917,2]
[361858956,1747848635017,-430.0,0.00021917,2]
[361858957,1747848635028,-430.0,0.00021917,2]
[361858958,1747848635038,-430.0,0.00021917,2]
[361858959,1747848635048,-430.0,0.00021917,2]
[361858960,1747848635058,-450.70483438,0.00021917,2]
[361858961,1747848635071,-431.75763091,0.00021917,2]
[361858962,1747848635082,-400.72764046,0.00021917,2]
[361858963,1747848635093,-430.0,0.00021917,2]
[361858964,1747848635103,-430.0,0.00021917,2]
[361858965,1747848635113,-450.421478,0.00021917,2]
[361858966,1747848635123,-430.0,0.00021917,2]
[361858967,1747848635133,-430.0,0.00021917,2]
[361858968,1747848635143,-37.07241108,0.00021917,2]
[361858969,1747848635157,-394.15916862,0.00021917,2]
[361858970,1747848635167,-450.0,0.00021917,2]
[361858971,1747848635181,-430.0,0.00021917,2]
[361858972,1747848635191,-291.41037538,0.00021917,2]
[361858973,1747848635203,-138.58962462,0.00021917,2]
[361858974,1747848635213,-431.31898292,0.00021917,2]
[361858975,1747848635223,-131.65584151,0.00021917,2]
[361858976,1747848635254,-298.34415849,0.00021917,2]
[361858977,1747848635264,-430.0,0.00021917,2]
[361858978,1747848635275,-430.0,0.00021917,2]
[361858979,1747848635286,-432.85663331,0.00021917,2]
[361858980,1747848635296,-436.53113975,0.00021917,2]
[361858981,1747848635306,-571.94707076,0.00021917,2]
[361858982,1747848635315,-430.0,0.00021917,2]
[361858983,1747848635324,-217.79115115,0.00021917,2]
[361858984,1747848635335,-415.76938968,0.00021917,2]
[361858985,1747848635344,-430.0,0.00021917,2]
[361858986,1747848635354,-401.17977441,0.00021917,2]
[361858987,1747848635364,-439.88605255,0.00021917,2]
[361858988,1747848635374,-431.44566036,0.00021917,2]
[361858989,1747848635384,-431.17526232,0.00021917,2]
[361858990,1747848635393,-433.40130627,0.00021917,2]
[361858991,1747848635403,-403.91299845,0.00021917,2]
[361858992,1747848635412,-430.0,0.00021917,2]
[361858993,1747848635421,-430.0,0.00021917,2]
[361858994,1747848635436,-344.93517203,0.00021917,2]
[361858995,1747848635446,-1005.61574215,0.00021917,2]
[361858996,1747848635456,-405.44056148,0.00021917,2]
[361858997,1747848635465,-448.57,0.00021917,2]
[361858998,1747848635474,-489.49922378,0.00021917,2]
[361858999,1747848635484,-431.94957379,0.00021917,2]
[361859000,1747848635494,-433.29933048,0.00021917,2]
[361859001,1747848635505,-430.0,0.00021917,2]
[361859002,1747848635514,-430.0,0.00021917,2]
[361859003,1747848635524,-430.59389948,0.00021917,2]
[361859004,1747848635534,-432.23228876,0.00021917,2]
[361859005,1747848635544,-430.0,0.00021917,2]
[361859006,1747848635553,-430.0,0.00021917,2]
[361859007,1747848635563,-402.2231976,0.00021917,2]
[361859008,1747848635572,-437.48908817,0.00021917,2]
[361859009,1747848635581,-430.0,0.00021917,2]
[361859010,1747848635591,-430.0,0.00021917,2]
[361859011,1747848635600,-430.0,0.00021917,2]
[361859012,1747848635609,-430.79264539,0.00021917,2]
[361859013,1747848635619,-406.35753184,0.00021917,2]
[361859014,1747848635628,-348.31960802,0.00021917,2]
[361859015,1747848635637,-430.0,0.00021917,2]
[361859016,1747848635647,-430.0,0.00021917,2]
[361859017,1747848635656,-430.0,0.00021917,2]
[361859018,1747848635666,-453.69007635,0.00021917,2]
[361859019,1747848635680,-430.0,0.00021917,2]
[361859020,1747848635689,-402.54833888,0.00021917,2]
[361859021,1747848635699,-430.0,0.00021917,2]
[361859022,1747848635710,-430.0,0.00021917,2]
[361859023,1747848635720,-312.49575413,0.00021917,2]
[361859024,1747848635730,-430.0,0.00021917,2]
[361859025,1747848635740,-430.0,0.00021917,2]
[361859026,1747848635753,-430.0,0.00021917,2]
[361859027,1747848635764,-404.0858259,0.00021917,2]
[361859028,1747848635774,-310.0,0.00021917,2]
[361859029,1747848635784,-432.94340623,0.00021917,2]
[361859030,1747848635793,-430.0,0.00021917,2]
[361859031,1747848635803,-434.14660711,0.00021917,2]
[361859032,1747848635813,-430.0,0.00021917,2]
[361859033,1747848635824,-430.0,0.00021917,2]
[361859034,1747848635834,-430.0,0.00021917,2]
[361859035,1747848635843,-430.41777428,0.00021917,2]
[361859036,1747848635853,-430.0,0.00021917,2]
[361859037,1747848635863,-434.0223265,0.00021917,2]
[361859038,1747848635873,-430.0,0.00021917,2]
[361859039,1747848635883,-191.88738573,0.00021917,2]
[361859040,1747848635892,-433.20175949,0.00021917,2]
[361859041,1747848635902,-431.98173589,0.00021917,2]
[361859042,1747848635912,-439.84941882,0.00021917,2]
[361859043,1747848635922,-355.48928372,0.00021917,2]
[361859044,1747848635936,-430.0,0.00021917,2]
[361859045,1747848635945,-430.0,0.00021917,2]
[361859046,1747848635955,-430.0,0.00021917,2]
[361859047,1747848635964,-430.0,0.00021917,2]
[361859048,1747848635974,-430.0,0.00021917,2]
[361859049,1747848635984,-430.0,0.00021917,2]
[361859050,1747848635995,-504.93269015,0.00021917,2]
[361859051,1747848636005,-430.0,0.00021917,2]
[361859052,1747848636015,-201.72289043,0.00021917,2]
[361859053,1747848636025,-373.6481487,0.00021917,2]
[361859054,1747848636034,-430.0,0.00021917,2]
[361859055,1747848636043,-430.0,0.00021917,2]
[361859056,1747848636053,-430.0,0.00021917,2]
[361859057,1747848636063,-430.0,0.00021917,2]
[361859058,1747848636072,-430.0,0.00021917,2]
[361859059,1747848636082,-433.04794232,0.00021917,2]
[361859060,1747848636092,-430.0,0.00021917,2]
[361859061,1747848636102,-400.0,0.00021917,2]
[361859062,1747848636112,-430.0,0.00021917,2]
[361859063,1747848636122,-430.0,0.00021917,2]
[361859064,1747848636132,-430.0,0.00021917,2]
[361859065,1747848636143,-414.60086281,0.00021917,2]
[361859066,1747848636155,-400.0,0.00021917,2]
[361859067,1747848636165,-430.0,0.00021917,2]
[361859068,1747848636180,-430.0,0.00021917,2]
[361859069,1747848636193,-401.6141588,0.00021917,2]
[361859070,1747848636203,-483.51507084,0.00021917,2]
[361859071,1747848636214,-342.92169423,0.00021917,2]
[361859072,1747848636224,-430.0,0.00021917,2]
[361859073,1747848636235,-430.0,0.00021917,2]
[361859074,1747848636246,-430.0,0.00021917,2]
[361859075,1747848636256,-430.0,0.00021917,2]
[361859076,1747848636267,-382.29075442,0.00021917,2]
[361859077,1747848636276,-425.09329993,0.00021917,2]
[361859078,1747848636286,-504.98298771,0.00021917,2]
[361859079,1747848636296,-430.0,0.00021917,2]
[361859080,1747848636305,-527.82920665,0.00021917,2]
[361859081,1747848636315,-430.0,0.00021917,2]
[361859082,1747848636324,-278.10752502,0.00021917,2]
[361859083,1747848636334,-430.0,0.00021917,2]
[361859084,1747848636344,-430.0,0.00021917,2]
[361859085,1747848636354,-430.0,0.00021917,2]
[361859086,1747848636363,-430.0,0.00021917,2]
[361859087,1747848636373,-404.45371331,0.00021917,2]
[361859088,1747848636382,-430.0,0.00021917,2]
[361859089,1747848636391,-526.92011334,0.00021917,2]
[361859090,1747848636400,-415.51965597,0.00021917,2]
[361859091,1747848636411,-430.0,0.00021917,2]
[361859092,1747848636543,-430.0,0.00021917,2]
[361859093,1747848636553,-430.40629675,0.00021917,2]
[361859094,1747848636563,-430.0,0.00021917,2]
[361859095,1747848636572,-430.0,0.00021917,2]
[361859096,1747848636581,-430.0,0.00021917,2]
[361859097,1747848636590,-400.0,0.00021917,2]
[361859098,1747848636600,-430.0,0.00021917,2]
[361859099,1747848636609,-430.0,0.00021917,2]
[361859100,1747848636619,-430.0,0.00021917,2]
[361859101,1747848636628,-395.30309266,0.00021917,2]
[361859102,1747848636637,-430.0,0.00021917,2]
[361859103,1747848636647,-430.0,0.00021917,2]
[361859104,1747848636656,-407.4592938,0.00021917,2]